fUST/lending_fUST_20240902
["ID","MTS","AMOUNT","RATE_DAILY","PERIOD"]
[336931798,1725246644585,-584.16,0.00024931,2]
[336931800,1725246644594,-500.0,0.00024931,2]
[336931802,1725246644603,-500.0,0.00024931,2]
[336931804,1725246644614,-500.0,0.00024931,2]
[336931806,1725246644623,-500.0,0.00024931,2]
[336931808,1725246644633,-500.0,0.00024931,2]
[336931810,1725246644642,-500.0,0.00024931,2]
[336931812,1725246644651,-500.0,0.00024931,2]
[336931814,1725246644660,-500.0,0.00024931,2]
[336931816,1725246644670,-509.71311402,0.00024931,2]
[336931818,1725246644679,-500.0,0.00024931,2]
[336931820,1725246644688,-500.0,0.00024931,2]
[336931823,1725246644697,-500.0,0.00024931,2]
[336931826,1725246644706,-500.0,0.00024931,2]
[336931828,1725246644715,-580.81237293,0.00024931,2]
[336931830,1725246644724,-500.0,0.00024931,2]
[336931832,1725246644733,-500.0,0.00024931,2]
[336931834,1725246644742,-473.53383477,0.00024931,2]
[336931837,1725246644752,-500.0,0.00024931,2]
[336931839,1725246644761,-500.0,0.00024931,2]
[336931841,1725246644770,-500.0,0.00024931,2]
[336931843,1725246644779,-500.0,0.00024931,2]
[336931845,1725246644788,-2872.18,0.00024931,2]
[336931847,1725246644797,-537.31,0.00024931,2]
[336931849,1725246644806,-504.75777711,0.00024931,2]
[336931851,1725246644816,-500.0,0.00024931,2]
[336931853,1725246644826,-500.0,0.00024931,2]
[336931855,1725246644836,-500.0,0.00024931,2]
[336931857,1725246644846,-500.0,0.00024931,2]
[336931859,1725246644855,-500.0,0.00024931,2]
[336931861,1725246644866,-566.36,0.00024931,2]
[336931863,1725246644875,-500.0,0.00024931,2]
[336931865,1725246644884,-567.92,0.00024931,2]
[336931867,1725246644893,-976.15,0.00024931,2]
[336931869,1725246644904,-577.8,0.00024931,2]
[336931871,1725246644915,-669.39,0.00024931,2]
[336931873,1725246644927,-632.17,0.00024931,2]
[336931875,1725246644937,-500.0,0.00024931,2]
[336931878,1725246644949,-503.13671639,0.00024931,2]
[336931879,1725246644959,-500.0,0.00024931,2]
[336931881,1725246644969,-564.97,0.00024931,2]
[336931884,1725246644978,-500.0,0.00024931,2]
[336931885,1725246644987,-500.55,0.00024931,2]
[336931887,1725246644997,-273.20464074,0.00024931,2]
[336931888,1725246645007,-500.0,0.00024931,2]
[336931889,1725246645016,-500.0,0.00024931,2]
[336931890,1725246645026,-500.0,0.00024931,2]
[336931891,1725246645036,-500.0,0.00024931,2]
[336931892,1725246645045,-500.0,0.00024931,2]
[336931893,1725246645054,-500.0,0.00024931,2]
[336931894,1725246645064,-500.0,0.00024931,2]
[336931896,1725246645073,-500.0,0.00024931,2]
[336931898,1725246645082,-500.0,0.00024931,2]
[336931900,1725246645091,-505.46943985,0.00024931,2]
[336931902,1725246645101,-500.0,0.00024931,2]
[336931904,1725246645112,-500.0,0.00024931,2]
[336931906,1725246645125,-500.0,0.00024931,2]
[336931908,1725246645135,-426.55777024,0.00024931,2]
[336931910,1725246645145,-500.0,0.00024931,2]
[336931912,1725246645155,-500.0,0.00024931,2]
[336931914,1725246645164,-829.93,0.00024931,2]
[336931916,1725246645174,-500.0,0.00024931,2]
[336931918,1725246645184,-500.0,0.00024931,2]
[336931920,1725246645194,-807.15,0.00024931,2]
[336931922,1725246645204,-500.0,0.00024931,2]
[336931924,1725246645214,-772.98,0.00024931,2]
[336931926,1725246645225,-500.0,0.00024931,2]
[336931927,1725246645238,-500.0,0.00024931,2]
[336931929,1725246645248,-500.0,0.00024931,2]
[336931931,1725246645258,-303.8127338,0.00024931,2]
[336931933,1725246645267,-597.37,0.00024931,2]
[336931935,1725246645277,-500.0,0.00024931,2]
[336931937,1725246645287,-530.44398048,0.00024931,2]
[336931939,1725246645300,-500.0,0.00024931,2]
[336931941,1725246645309,-500.0,0.00024931,2]
[336931943,1725246645318,-500.0,0.00024931,2]
[336931945,1725246645328,-511.89508418,0.00024931,2]
[336931947,1725246645338,-500.0,0.00024931,2]
[336931949,1725246645347,-500.0,0.00024931,2]
[336931951,1725246645357,-849.94,0.00024931,2]
[336931953,1725246645375,-1574.39,0.00024931,2]
[336931955,1725246645384,-509.28993497,0.00024931,2]
[336931957,1725246645393,-614.43,0.00024931,2]
[336931959,1725246645403,-901.44,0.00024931,2]
[336931961,1725246645412,-1131.06,0.00024931,2]
[336931963,1725246645422,-500.0,0.00024931,2]
[336931965,1725246645432,-500.0,0.00024931,2]
[336931967,1725246645442,-500.0,0.00024931,2]
[336931969,1725246645451,-500.0,0.00024931,2]
[336931971,1725246645461,-500.0,0.00024931,2]
[336931973,1725246645471,-500.0,0.00024931,2]
[336931975,1725246645480,-1008.68,0.00024931,2]
[336931977,1725246645490,-665.0,0.00024931,2]
[336931979,1725246645500,-500.0,0.00024931,2]
[336931981,1725246645510,-1231.0,0.00024931,2]
[336931983,1725246645520,-500.0,0.00024931,2]
[336931985,1725246645531,-500.0,0.00024931,2]
[336931986,1725246645541,-500.0,0.00024931,2]
[336931987,1725246645552,-500.0,0.00024931,2]
[336931988,1725246645563,-500.0,0.00024931,2]
[336931989,1725246645573,-1001.68,0.00024931,2]
[336931990,1725246645582,-500.0,0.00024931,2]
[336931991,1725246645592,-500.0,0.00024931,2]
[336931992,1725246645601,-500.0,0.00024931,2]
[336931993,1725246645614,-1964.96,0.00024931,2]
[336931994,1725246645623,-500.0,0.00024931,2]
[336931995,1725246645634,-2308.75,0.00024931,2]
[336931996,1725246645645,-1557.63,0.00024931,2]
[336931997,1725246645655,-500.0,0.00024931,2]
[336931998,1725246645665,-500.0,0.00024931,2]
[336931999,1725246645674,-500.0,0.00024931,2]
[336932000,1725246645683,-500.0,0.00024931,2]
[336932001,1725246645692,-770.26,0.00024931,2]
[336932002,1725246645702,-511.48,0.00024931,2]
[336932003,1725246645711,-500.0,0.00024931,2]
[336932004,1725246645720,-500.0,0.00024931,2]
[336932005,1725246645729,-1178.6,0.00024931,2]
[336932006,1725246645739,-1131.43,0.00024931,2]
[336932007,1725246645750,-1800.19,0.00024931,2]
[336932008,1725246645760,-10167.07,0.00024931,2]
[336932009,1725246645769,-638.48,0.00024931,2]
[336932010,1725246645779,-500.0,0.00024931,2]
[336932011,1725246645788,-791.36,0.00024931,2]
[336932012,1725246645797,-1503.03,0.00024931,2]
[336932013,1725246645807,-565.16,0.00024931,2]
[336932014,1725246645818,-500.0,0.00024931,2]
[336932015,1725246645829,-500.0,0.00024931,2]
[336932016,1725246645839,-1031.19,0.00024931,2]
[336932017,1725246645849,-2334.08,0.00024931,2]
[336932018,1725246645861,-868.09,0.00024931,2]
[336932019,1725246645871,-1655.52,0.00024931,2]
[336932020,1725246645880,-500.0,0.00024931,2]
[336932021,1725246645891,-769.76,0.00024931,2]
[336932022,1725246645901,-500.0,0.00024931,2]
[336932023,1725246645913,-1333.93,0.00024931,2]
[336932024,1725246645923,-1146.78,0.00024931,2]
[336932025,1725246645932,-548.55,0.00024931,2]
[336932026,1725246645943,-500.0,0.00024931,2]
[336932027,1725246645954,-500.0,0.00024931,2]
[336932028,1725246645964,-1178.14,0.00024931,2]
[336932029,1725246645973,-1350.13,0.00024931,2]
[336932030,1725246645984,-1303.21,0.00024931,2]
[336932031,1725246645995,-878.8,0.00024931,2]
[336932032,1725246646005,-1173.44,0.00024931,2]
[336932033,1725246646014,-3627.98,0.00024931,2]
[336932034,1725246646023,-1157.11,0.00024931,2]
[336932035,1725246646032,-2043.51,0.00024931,2]
[336932036,1725246646044,-500.0,0.00024931,2]
[336932037,1725246646056,-593.24,0.00024931,2]
[336932038,1725246646067,-500.0,0.00024931,2]
[336932039,1725246646076,-870.56,0.00024931,2]
[336932040,1725246646086,-1292.3,0.00024931,2]
[336932041,1725246646095,-972.92,0.00024931,2]
[336932042,1725246646104,-1662.53,0.00024931,2]
[336932043,1725246646116,-573.64,0.00024931,2]
[336932044,1725246646128,-608.5228033,0.00024931,2]
[336932045,1725246646137,-500.0,0.00024931,2]
[336932046,1725246646146,-1027.98,0.00024931,2]
[336932047,1725246646155,-733.05,0.00024931,2]
[336932048,1725246646165,-1005.51,0.00024931,2]
[336932049,1725246646174,-523.02,0.00024931,2]
[336932050,1725246646183,-828.87,0.00024931,2]
[336932051,1725246646192,-1187.14,0.00024931,2]
[336932052,1725246646201,-500.0,0.00024931,2]
[336932053,1725246646211,-500.0,0.00024931,2]
[336932054,1725246646221,-500.0,0.00024931,2]
[336932055,1725246646230,-806.87,0.00024931,2]
[336932056,1725246646240,-500.0,0.00024931,2]
[336932057,1725246646249,-6705.5,0.00024931,2]
[336932058,1725246646258,-529.47,0.00024931,2]
[336932059,1725246646268,-1389.38,0.00024931,2]
[336932060,1725246646278,-1297.85,0.00024931,2]
[336932061,1725246646288,-504.28990011,0.00024931,2]
[336932062,1725246646301,-500.0,0.00024931,2]
[336932063,1725246646311,-780.64,0.00024931,2]
[336932064,1725246646321,-565.15,0.00024931,2]
[336932065,1725246646334,-1496.6,0.00024931,2]
[336932066,1725246646344,-2657.9,0.00024931,2]
[336932067,1725246646353,-500.0,0.00024931,2]
[336932068,1725246646364,-500.0,0.00024931,2]
[336932069,1725246646374,-1468.45,0.00024931,2]
[336932070,1725246646384,-2406.94,0.00024931,2]
[336932071,1725246646393,-649.55,0.00024931,2]
[336932072,1725246646402,-1696.86,0.00024931,2]
[336932073,1725246646411,-1127.39,0.00024931,2]
[336932074,1725246646423,-742.12,0.00024931,2]
[336932075,1725246646434,-500.0,0.00024931,2]
[336932076,1725246646445,-1123.72,0.00024931,2]
[336932077,1725246646455,-500.0,0.00024931,2]
[336932078,1725246646464,-500.0,0.00024931,2]
[336932079,1725246646474,-500.0,0.00024931,2]
[336932080,1725246646483,-500.0,0.00024931,2]
[336932081,1725246646492,-500.0,0.00024931,2]
[336932082,1725246646501,-7257.09,0.00024931,2]
[336932083,1725246646511,-1057.1,0.00024931,2]
[336932084,1725246646520,-1038.05,0.00024931,2]
[336932085,1725246646529,-1627.5,0.00024931,2]
[336932086,1725246646539,-2185.45870766,0.00025,14]
[336932090,1725246646748,-435.42129234,0.00025,14]
[336932091,1725246646758,-159.0,0.00025,2]
[336932092,1725246646767,-503.59009378,0.00025,2]
[336932094,1725246646776,-639.87167627,0.00025105,2]
[336932096,1725246646785,-1744.30640628,0.00025105,2]
[336932098,1725246646794,-150.0,0.000252,2]
[336932100,1725246646804,-500.0,0.00025205,2]
[336932102,1725246646814,-324.61757941,0.00025205,2]
[336932170,1725246694640,152.7979446,0.00023233,2]
[336932171,1725246694661,233.8833916,0.00023233,2]
[336932172,1725246694685,424.45081349,0.00023233,2]
[336932173,1725246694708,124.25778432,0.00023233,2]
[336932175,1725246953410,166.96629,0.00014247,2]
[336932177,1725247414737,300.0,0.0002009,3]
[336932178,1725247506611,163.578716,0.00014247,2]
[336932181,1725247629280,-151.07256973,0.00021918,5]
[336932183,1725247687405,399.17396977,0.000167,2]
[336932184,1725247745162,-3118.92743027,0.00021918,5]
[336932185,1725247750121,-159.045646,0.00023718,2]
[336932186,1725247750149,-159.045646,0.00023831,2]
[336932187,1725247750174,-148.43134745,0.00023836,2]
[336932188,1725247759144,-252.54099255,0.00023836,2]
[336932189,1725247759169,-159.045646,0.00023943,2]
[336932190,1725247759192,-159.045646,0.00024056,2]
[336932191,1725247764144,-152.7979446,0.00024168,2]
[336932252,1725247838275,-6.2477014,0.00024168,2]
[336932254,1725247838285,-159.045646,0.0002428,2]
[336932256,1725247838295,-159.045646,0.00024393,2]
[336932258,1725247838304,-159.045646,0.00024505,2]
[336932260,1725247838313,-159.045646,0.00024617,2]
[336932262,1725247838322,-654.8080644,0.00024647,3]
[336932263,1725247838332,-300.0,0.00024653,2]
[336932264,1725247838341,-54.28366555,0.00024654,2]
[336932265,1725247838394,-8187.49867721,0.00024654,2]
[336932266,1725247838414,-501.51252961,0.00024654,2]
[336932267,1725247838424,-500.0,0.00024657,2]
[336932268,1725247838434,-500.0,0.00024657,2]
[336932269,1725247838444,-503.75139708,0.00024657,2]
[336932270,1725247838454,-500.0,0.00024657,2]
[336932271,1725247838463,-500.0,0.00024657,2]
[336932272,1725247838474,-500.0,0.00024657,2]
[336932273,1725247838483,-500.0,0.00024657,2]
[336932274,1725247838493,-509.71311402,0.00024657,2]
[336932275,1725247838503,-500.0,0.00024657,2]
[336932276,1725247838515,-500.0,0.00024657,2]
[336932277,1725247838525,-500.0,0.00024657,2]
[336932278,1725247838537,-500.0,0.00024657,2]
[336932279,1725247838548,-500.0,0.00024657,2]
[336932280,1725247838558,-500.0,0.00024657,2]
[336932281,1725247838569,-500.0,0.00024657,2]
[336932282,1725247838579,-500.0,0.00024657,2]
[336932283,1725247838589,-500.0,0.00024657,2]
[336932284,1725247838600,-542.76,0.00024657,2]
[336932285,1725247838612,-500.0,0.00024657,2]
[336932286,1725247838622,-500.0,0.00024657,2]
[336932287,1725247838632,-553.72,0.00024657,2]
[336932288,1725247838643,-500.0,0.00024657,2]
[336932289,1725247838652,-500.0,0.00024657,2]
[336932290,1725247838668,-504.75777711,0.00024657,2]
[336932291,1725247838679,-500.0,0.00024657,2]
[336932292,1725247838689,-280.63957312,0.00024657,2]
[336932293,1725247838698,-500.0,0.00024657,2]
[336932294,1725247838709,-500.0,0.00024657,2]
[336932295,1725247838719,-500.0,0.00024657,2]
[336932296,1725247838728,-500.0,0.00024657,2]
[336932297,1725247838740,-500.0,0.00024657,2]
[336932298,1725247838751,-500.0,0.00024657,2]
[336932299,1725247838762,-500.0,0.00024657,2]
[336932300,1725247838771,-500.0,0.00024657,2]
[336932301,1725247838781,-273.20464074,0.00024657,2]
[336932302,1725247838790,-500.0,0.00024657,2]
[336932303,1725247838800,-500.0,0.00024657,2]
[336932304,1725247838810,-500.0,0.00024657,2]
[336932305,1725247838819,-505.46943985,0.00024657,2]
[336932306,1725247838829,-500.0,0.00024657,2]
[336932307,1725247838840,-500.0,0.00024657,2]
[336932308,1725247838849,-500.0,0.00024657,2]
[336932309,1725247838859,-500.0,0.00024657,2]
[336932310,1725247838869,-426.55777024,0.00024657,2]
[336932311,1725247838879,-500.8975156,0.00024657,2]
[336932312,1725247838888,-500.0,0.00024657,2]
[336932313,1725247838900,-500.0,0.00024657,2]
[336932314,1725247838912,-198.60718899,0.00024657,2]
[336932315,1725247838924,-500.0,0.00024657,2]
[336932316,1725247838935,-500.0,0.00024657,2]
[336932317,1725247838946,-500.0,0.00024657,2]
[336932318,1725247838957,-500.0,0.00024657,2]
[336932319,1725247838966,-508.84601125,0.00024657,2]
[336932320,1725247838978,-500.0,0.00024657,2]
[336932321,1725247838989,-500.0,0.00024657,2]
[336932322,1725247838999,-500.0,0.00024657,2]
[336932323,1725247839013,-500.0,0.00024657,2]
[336932324,1725247839028,-940.36,0.00024657,2]
[336932325,1725247839037,-500.0,0.00024657,2]
[336932326,1725247839046,-500.0,0.00024657,2]
[336932327,1725247839056,-500.0,0.00024657,2]
[336932328,1725247839065,-500.0,0.00024657,2]
[336932329,1725247839075,-500.0,0.00024657,2]
[336932330,1725247839084,-500.0,0.00024657,2]
[336932331,1725247839093,-1052.46,0.00024657,2]
[336932332,1725247839103,-500.0,0.00024657,2]
[336932333,1725247839113,-500.0,0.00024657,2]
[336932334,1725247839122,-501.57384797,0.00024657,2]
[336932335,1725247839132,-500.0,0.00024657,2]
[336932336,1725247839143,-228.39434148,0.00024657,2]
[336932337,1725247839153,-500.0,0.00024657,2]
[336932338,1725247839164,-500.0,0.00024657,2]
[336932339,1725247839174,-500.0,0.00024657,2]
[336932340,1725247839184,-500.0,0.00024657,2]
[336932341,1725247839194,-500.0,0.00024657,2]
[336932342,1725247839204,-500.0,0.00024657,2]
[336932343,1725247839213,-500.0,0.00024657,2]
[336932344,1725247839223,-500.0,0.00024657,2]
[336932345,1725247839232,-457.60562486,0.00024657,2]
[336932346,1725247839242,-500.0,0.00024657,2]
[336932347,1725247839251,-500.0,0.00024657,2]
[336932348,1725247839266,-500.0,0.00024657,2]
[336932349,1725247839276,-631.87,0.00024657,2]
[336932350,1725247839286,-500.0,0.00024657,2]
[336932351,1725247839295,-500.0,0.00024657,2]
[336932352,1725247839305,-500.0,0.00024657,2]
[336932353,1725247839314,-500.0,0.00024657,2]
[336932354,1725247839324,-500.0,0.00024657,2]
[336932355,1725247839333,-500.0,0.00024657,2]
[336932356,1725247839343,-500.0,0.00024657,2]
[336932357,1725247839357,-500.0,0.00024657,2]
[336932358,1725247839367,-500.0,0.00024657,2]
[336932359,1725247839377,-500.0,0.00024657,2]
[336932360,1725247839386,-500.0,0.00024657,2]
[336932361,1725247839396,-500.0,0.00024657,2]
[336932362,1725247839405,-500.0,0.00024657,2]
[336932363,1725247839414,-500.0,0.00024657,2]
[336932364,1725247839424,-501.68855469,0.00024657,2]
[336932365,1725247839434,-500.0,0.00024657,2]
[336932366,1725247839443,-500.0,0.00024657,2]
[336932367,1725247839454,-500.0,0.00024657,2]
[336932368,1725247839463,-500.0,0.00024657,2]
[336932369,1725247839473,-500.0,0.00024657,2]
[336932370,1725247839483,-513.57387618,0.00024657,2]
[336932371,1725247839493,-500.0,0.00024657,2]
[336932372,1725247839503,-500.0,0.00024657,2]
[336932373,1725247839516,-500.0,0.00024657,2]
[336932374,1725247839525,-500.0,0.00024657,2]
[336932375,1725247839535,-500.0,0.00024657,2]
[336932376,1725247839544,-500.0,0.00024657,2]
[336932377,1725247839553,-500.0,0.00024657,2]
[336932378,1725247839563,-500.0,0.00024657,2]
[336932379,1725247839572,-500.0,0.00024657,2]
[336932380,1725247839582,-500.0,0.00024657,2]
[336932381,1725247839592,-633.77385658,0.00024657,4]
[336932382,1725247839601,-337.88855092,0.00024657,2]
[336932383,1725247839611,-500.0,0.00024657,2]
[336932384,1725247839620,-500.0,0.00024657,2]
[336932385,1725247839629,-500.0,0.00024657,2]
[336932386,1725247839639,-500.0,0.00024657,2]
[336932387,1725247839648,-495.4412473,0.00024657,2]
[336932388,1725247839659,-500.0,0.00024657,2]
[336932389,1725247839671,-500.0,0.00024657,2]
[336932390,1725247839681,-500.0,0.00024657,2]
[336932391,1725247839691,-500.0,0.00024657,2]
[336932392,1725247839702,-503.86842878,0.00024657,2]
[336932393,1725247839712,-269.24649168,0.00024657,2]
[336932394,1725247839722,-585.28,0.00024657,2]
[336932395,1725247839733,-532.31,0.00024657,2]
[336932397,1725247839743,-538.09,0.00024657,2]
[336932398,1725247839753,-500.0,0.00024657,2]
[336932399,1725247839765,-500.0,0.00024657,2]
[336932400,1725247839963,-500.0,0.00024657,2]
[336932401,1725247839973,-500.0,0.00024657,2]
[336932402,1725247839982,-724.68,0.00024657,2]
[336932403,1725247839992,-500.0,0.00024657,2]
[336932404,1725247840002,-500.0,0.00024657,2]
[336932405,1725247840012,-567.37,0.00024657,2]
[336932406,1725247840022,-583.41,0.00024657,2]
[336932407,1725247840032,-500.0,0.00024657,2]
[336932408,1725247840042,-500.0,0.00024657,2]
[336932409,1725247840053,-669.14,0.00024657,2]
[336932410,1725247840064,-657.85,0.00024657,2]
[336932411,1725247840073,-500.0,0.00024657,2]
[336932412,1725247840082,-205.2154164,0.00024657,2]
[336932413,1725247840091,-500.0,0.00024657,2]
[336932414,1725247840100,-541.21,0.00024657,2]
[336932415,1725247840110,-485.12013036,0.00024657,2]
[336932416,1725247840121,-500.0,0.00024657,2]
[336932417,1725247840132,-358.59328275,0.00024657,2]
[336932418,1725247840142,-500.0,0.00024657,2]
[336932419,1725247840153,-500.0,0.00024657,2]
[336932420,1725247840162,-500.0,0.00024657,2]
[336932422,1725247840171,-500.0,0.00024657,2]
[336932424,1725247840181,-500.0,0.00024657,2]
[336932426,1725247840192,-502.05100841,0.00024657,2]
[336932427,1725247840203,-500.0,0.00024657,2]
[336932428,1725247840213,-2868.37,0.00024657,2]
[336932429,1725247840224,-500.0,0.00024657,2]
[336932430,1725247840233,-559.34218101,0.00024657,2]
[336932431,1725247840243,-500.0,0.00024657,2]
[336932432,1725247840254,-500.0,0.00024657,2]
[336932433,1725247840265,-500.0,0.00024657,2]
[336932434,1725247840275,-500.0,0.00024657,2]
[336932435,1725247840285,-872.88,0.00024657,2]
[336932436,1725247840295,-500.0,0.00024657,2]
[336932437,1725247840306,-500.0,0.00024657,2]
[336932438,1725247840316,-500.0,0.00024657,2]
[336932439,1725247840326,-500.0,0.00024657,2]
[336932440,1725247840336,-500.0,0.00024657,2]
[336932441,1725247840347,-974.86,0.00024657,2]
[336932442,1725247840356,-500.0,0.00024657,2]
[336932443,1725247840366,-500.0,0.00024657,2]
[336932445,1725247840376,-500.0,0.00024657,2]
[336932447,1725247840388,-500.0,0.00024657,2]
[336932449,1725247840399,-500.0,0.00024657,2]
[336932451,1725247840409,-500.0,0.00024657,2]
[336932453,1725247840419,-503.13671639,0.00024657,2]
[336932454,1725247840430,-541.43,0.00024657,2]
[336932455,1725247840439,-334.16688174,0.00024657,2]
[336932456,1725247840450,-625.21062188,0.00024657,2]
[336932457,1725247840459,-500.0,0.00024657,2]
[336932458,1725247840468,-505.60656397,0.00024657,2]
[336932459,1725247840478,-500.0,0.00024657,2]
[336932460,1725247840487,-500.0,0.00024657,2]
[336932461,1725247840496,-488.83665506,0.00024657,2]
[336932462,1725247840505,-500.0,0.00024657,2]
[336932463,1725247840515,-500.0,0.00024657,2]
[336932464,1725247840525,-540.93524496,0.00024657,2]
[336932465,1725247840534,-586.14964997,0.00024657,2]
[336932466,1725247840543,-303.8127338,0.00024657,2]
[336932467,1725247840554,-500.0,0.00024657,2]
[336932468,1725247840563,-500.0,0.00024657,2]
[336932469,1725247840573,-572.48,0.00024657,2]
[336932470,1725247840582,-500.0,0.00024657,2]
[336932471,1725247840592,-500.0,0.00024657,2]
[336932472,1725247840601,-500.0,0.00024657,2]
[336932473,1725247840610,-500.0,0.00024657,2]
[336932474,1725247840620,-500.0,0.00024657,2]
[336932475,1725247840631,-500.0,0.00024657,2]
[336932476,1725247840643,-500.0,0.00024657,2]
[336932477,1725247840655,-500.0,0.00024657,2]
[336932478,1725247840670,-500.0,0.00024657,2]
[336932479,1725247840681,-500.0,0.00024657,2]
[336932480,1725247840691,-500.0,0.00024657,2]
[336932481,1725247840701,-500.0,0.00024657,2]
[336932482,1725247840713,-500.0,0.00024657,2]
[336932483,1725247840722,-503.48375252,0.00024657,2]
[336932484,1725247840732,-159.62148588,0.00024657,2]
[336932485,1725247840744,-511.89508418,0.00024657,2]
[336932486,1725247840754,-500.0,0.00024657,2]
[336932487,1725247840764,-814.52,0.00024657,2]
[336932488,1725247840774,-500.0,0.00024657,2]
[336932489,1725247840784,-509.28993497,0.00024657,2]
[336932490,1725247840794,-500.0,0.00024657,2]
[336932491,1725247840803,-500.0,0.00024657,2]
[336932492,1725247840812,-500.0,0.00024657,2]
[336932493,1725247840821,-500.0,0.00024657,2]
[336932494,1725247840832,-508.0090939,0.00024657,2]
[336932495,1725247840843,-1152.78,0.00024657,2]
[336932496,1725247840853,-500.0,0.00024657,2]
[336932497,1725247840863,-795.35,0.00024657,2]
[336932498,1725247840872,-500.0,0.00024657,2]
[336932499,1725247840882,-500.0,0.00024657,2]
[336932500,1725247840891,-500.0,0.00024657,2]
[336932501,1725247840902,-500.0,0.00024657,2]
[336932502,1725247840912,-500.0,0.00024657,2]
[336932503,1725247840921,-500.0,0.00024657,2]
[336932504,1725247840931,-665.0,0.00024657,2]
[336932505,1725247840940,-773.51,0.00024657,2]
[336932506,1725247840952,-619.02,0.00024657,2]
[336932507,1725247840962,-500.0,0.00024657,2]
[336932508,1725247840971,-500.0,0.00024657,2]
[336932509,1725247840983,-500.0,0.00024657,2]
[336932510,1725247840994,-500.0,0.00024657,2]
[336932511,1725247841005,-740.77,0.00024657,2]
[336932512,1725247841015,-500.0,0.00024657,2]
[336932513,1725247841025,-1131.06,0.00024657,2]
[336932514,1725247841036,-1042.52,0.00024657,2]
[336932515,1725247841048,-500.0,0.00024657,2]
[336932516,1725247841060,-500.0,0.00024657,2]
[336932517,1725247841071,-500.0,0.00024657,2]
[336932518,1725247841082,-500.0,0.00024657,2]
[336932519,1725247841093,-1557.63,0.00024657,2]
[336932520,1725247841104,-500.0,0.00024657,2]
[336932521,1725247841117,-500.0,0.00024657,2]
[336932522,1725247841126,-500.0,0.00024657,2]
[336932523,1725247841135,-2308.75,0.00024657,2]
[336932524,1725247841144,-500.0,0.00024657,2]
[336932525,1725247841154,-500.0,0.00024657,2]
[336932526,1725247841163,-513.5,0.00024657,2]
[336932527,1725247841173,-500.0,0.00024657,2]
[336932528,1725247841183,-500.0,0.00024657,2]
[336932529,1725247841192,-500.0,0.00024657,2]
[336932530,1725247841201,-2048.98,0.00024657,2]
[336932531,1725247841211,-500.0,0.00024657,2]
[336932532,1725247841221,-515.06,0.00024657,2]
[336932533,1725247841231,-500.0,0.00024657,2]
[336932534,1725247841240,-500.0,0.00024657,2]
[336932535,1725247841249,-500.0,0.00024657,2]
[336932536,1725247841261,-500.0,0.00024657,2]
[336932537,1725247841271,-500.0,0.00024657,2]
[336932538,1725247841282,-500.0,0.00024657,2]
[336932539,1725247841291,-665.52,0.00024657,2]
[336932540,1725247841300,-507.08424322,0.00024657,2]
[336932541,1725247841310,-1800.19,0.00024657,2]
[336932542,1725247841319,-500.0,0.00024657,2]